[Event "Early-Titled-Tuesday-Blitz-February-27-2024"]
[Site "Chess.com"]
[Date "2024.02.27"]
[Round "1"]
[White "AniJak"]
[Black "malakismayil"]
[Result "0-1"]
[WhiteElo "2374"]
[BlackElo "2674"]
[TimeControl "180+1"]
[EndTime "8:07:16 PST"]
[Termination "malakismayil won by resignation"]

1. e4 {[%clk 0:03:00.9]} 1... e5 {[%clk 0:02:59.6]} 2. Nc3 {[%clk 0:02:59.7]}
2... Nc6 {[%clk 0:03:00.1]} 3. g3 {[%clk 0:02:59.2]} 3... Bc5 {[%clk 0:02:58.8]}
4. Bg2 {[%clk 0:02:59.7]} 4... Nf6 {[%clk 0:02:59]} 5. Nge2 {[%clk 0:02:59.5]}
5... O-O {[%clk 0:02:59.7]} 6. d3 {[%clk 0:02:59.7]} 6... h6 {[%clk 0:03:00.1]}
7. O-O {[%clk 0:02:59.5]} 7... d6 {[%clk 0:03:00.5]} 8. h3 {[%clk 0:02:59.1]}
8... Be6 {[%clk 0:02:59.4]} 9. Kh2 {[%clk 0:02:59.2]} 9... d5 {[%clk 0:02:57.8]}
10. f4 {[%clk 0:02:56.6]} 10... dxe4 {[%clk 0:02:56]} 11. dxe4 {[%clk
0:02:55.6]} 11... Qxd1 {[%clk 0:02:42.3]} 12. Rxd1 {[%clk 0:02:53.5]} 12... Rad8
{[%clk 0:02:42.9]} 13. Nd5 {[%clk 0:02:44.5]} 13... Nxd5 {[%clk 0:02:06.2]} 14.
exd5 {[%clk 0:02:43.6]} 14... Ne7 {[%clk 0:02:02.6]} 15. c4 {[%clk 0:02:22]}
15... c6 {[%clk 0:02:02.8]} 16. fxe5 {[%clk 0:02:18.9]} 16... cxd5 {[%clk
0:02:03]} 17. Bf4 {[%clk 0:01:32]} 17... dxc4 {[%clk 0:01:58]} 18. Nc3 {[%clk
0:01:16.1]} 18... b6 {[%clk 0:01:45]} 19. Ne4 {[%clk 0:01:14.2]} 19... Bd4
{[%clk 0:01:43.9]} 20. Rab1 {[%clk 0:01:13.7]} 20... Ng6 {[%clk 0:01:43]} 21.
Nd6 {[%clk 0:00:58]} 21... Bxe5 {[%clk 0:01:41.7]} 22. Bxe5 {[%clk 0:00:56]}
22... Nxe5 {[%clk 0:01:42.6]} 23. Nb5 {[%clk 0:00:55.9]} 23... a5 {[%clk
0:01:31.8]} 24. Nc7 {[%clk 0:00:51.5]} 24... Bf5 {[%clk 0:01:31.5]} 25. Rbc1
{[%clk 0:00:47.6]} 25... Bd3 {[%clk 0:01:31.3]} 26. Nd5 {[%clk 0:00:43.2]} 26...
Rd6 {[%clk 0:01:25.4]} 27. b3 {[%clk 0:00:38.5]} 27... b5 {[%clk 0:01:23.7]} 28.
Nc3 {[%clk 0:00:28.8]} 28... Rb8 {[%clk 0:01:07]} 29. Re1 {[%clk 0:00:27.2]}
29... Ng6 {[%clk 0:01:03.9]} 30. h4 {[%clk 0:00:23.1]} 30... b4 {[%clk
0:00:59.9]} 31. Ne4 {[%clk 0:00:21.4]} 31... Bxe4 {[%clk 0:00:59.9]} 32. Bxe4
{[%clk 0:00:20.4]} 32... c3 {[%clk 0:01:00.4]} 33. h5 {[%clk 0:00:18.5]} 33...
Ne5 {[%clk 0:00:57.7]} 34. Bf5 {[%clk 0:00:18.3]} 34... Nf3+ {[%clk 0:00:54.8]}
35. Kg2 {[%clk 0:00:18.8]} 35... Nxe1+ {[%clk 0:00:55.7]} 36. Rxe1 {[%clk
0:00:19]} 36... Rbd8 {[%clk 0:00:55.3]} 37. Kh3 {[%clk 0:00:17.6]} 37... Rd5
{[%clk 0:00:53.1]} 38. g4 {[%clk 0:00:16.8]} 38... R5d6 {[%clk 0:00:44.4]} 39.
Re7 {[%clk 0:00:16.2]} 39... Rc6 {[%clk 0:00:41.6]} 40. Re2 {[%clk 0:00:15.9]}
40... Kf8 {[%clk 0:00:40.6]} 41. g5 {[%clk 0:00:13.2]} 41... hxg5 {[%clk
0:00:40.3]} 42. Kg4 {[%clk 0:00:13.5]} 42... Rd2 {[%clk 0:00:39.8]} 43. Re5
{[%clk 0:00:12.7]} 43... c2 {[%clk 0:00:38.9]} 44. Rxa5 {[%clk 0:00:01]} 44...
c1=Q {[%clk 0:00:38.3]} 0-1

[Event "Early-Titled-Tuesday-Blitz-February-27-2024"]
[Site "Chess.com"]
[Date "2024.02.27"]
[Round "1"]
[White "1977Ivan"]
[Black "MIss_MIaMI"]
[Result "1-0"]
[WhiteElo "2730"]
[BlackElo "2417"]
[TimeControl "180+1"]
[EndTime "8:07:19 PST"]
[Termination "1977Ivan won by checkmate"]

1. d4 {[%clk 0:03:00.9]} 1... c5 {[%clk 0:02:59.3]} 2. d5 {[%clk 0:02:58.9]}
2... g6 {[%clk 0:02:58.2]} 3. e4 {[%clk 0:02:57.8]} 3... Bg7 {[%clk 0:02:58.2]}
4. Nc3 {[%clk 0:02:58.4]} 4... a6 {[%clk 0:02:58.5]} 5. f4 {[%clk 0:02:48.3]}
5... b5 {[%clk 0:02:54.8]} 6. Nf3 {[%clk 0:02:43.1]} 6... d6 {[%clk 0:02:53.4]}
7. a4 {[%clk 0:02:34.5]} 7... b4 {[%clk 0:02:49.7]} 8. Nb1 {[%clk 0:02:32.6]}
8... Bg4 {[%clk 0:02:38.7]} 9. h3 {[%clk 0:02:26.1]} 9... Bxf3 {[%clk
0:02:38.4]} 10. Qxf3 {[%clk 0:02:27]} 10... Nd7 {[%clk 0:02:38.1]} 11. a5 {[%clk
0:02:25.2]} 11... Ngf6 {[%clk 0:02:36.1]} 12. Bc4 {[%clk 0:02:25]} 12... O-O
{[%clk 0:02:35.8]} 13. O-O {[%clk 0:02:25]} 13... Ne8 {[%clk 0:02:36.2]} 14. Nd2
{[%clk 0:02:13.3]} 14... Nc7 {[%clk 0:02:32.1]} 15. Qe2 {[%clk 0:01:47.2]} 15...
Qb8 {[%clk 0:02:20.4]} 16. Nf3 {[%clk 0:01:44.9]} 16... Nb5 {[%clk 0:02:16.6]}
17. Kh1 {[%clk 0:01:30.7]} 17... Nf6 {[%clk 0:01:27]} 18. Kh2 {[%clk 0:01:24.8]}
18... Rd8 {[%clk 0:01:20.3]} 19. Ra2 {[%clk 0:01:24]} 19... Ne8 {[%clk
0:01:12.2]} 20. Bd2 {[%clk 0:01:22.6]} 20... Qb7 {[%clk 0:01:11.4]} 21. Qd3
{[%clk 0:01:20]} 21... Nd4 {[%clk 0:01:10.1]} 22. Ng5 {[%clk 0:01:14.7]} 22...
h6 {[%clk 0:01:08.1]} 23. Nf3 {[%clk 0:01:14.6]} 23... Nxf3+ {[%clk 0:01:07.5]}
24. Rxf3 {[%clk 0:01:13]} 24... Nc7 {[%clk 0:01:07.3]} 25. c3 {[%clk 0:01:05.1]}
25... bxc3 {[%clk 0:01:02.4]} 26. bxc3 {[%clk 0:01:06]} 26... Nb5 {[%clk
0:00:59]} 27. Ra1 {[%clk 0:01:02.5]} 27... Rdb8 {[%clk 0:00:55.5]} 28. h4 {[%clk
0:00:55.4]} 28... h5 {[%clk 0:00:52.7]} 29. e5 {[%clk 0:00:52.3]} 29... dxe5
{[%clk 0:00:39.9]} 30. f5 {[%clk 0:00:52.1]} 30... Nd6 {[%clk 0:00:31.9]} 31.
Re1 {[%clk 0:00:37]} 31... e4 {[%clk 0:00:20.5]} 32. Rxe4 {[%clk 0:00:36.4]}
32... Nxe4 {[%clk 0:00:21.4]} 33. Qxe4 {[%clk 0:00:36.9]} 33... Qc7+ {[%clk
0:00:16.7]} 34. Bf4 {[%clk 0:00:36.3]} 34... Qxa5 {[%clk 0:00:17.1]} 35. fxg6
{[%clk 0:00:35.4]} 35... Rb7 {[%clk 0:00:07.8]} 36. d6 {[%clk 0:00:34.5]} 36...
e6 {[%clk 0:00:06.5]} 37. Qxb7 {[%clk 0:00:33.7]} 37... Rf8 {[%clk 0:00:05.2]}
38. gxf7+ {[%clk 0:00:32.6]} 38... Rxf7 {[%clk 0:00:05.4]} 39. Bxe6 {[%clk
0:00:31.2]} 39... Qd8 {[%clk 0:00:01.7]} 40. Qxf7+ {[%clk 0:00:29.9]} 40... Kh8
{[%clk 0:00:02.2]} 41. Qxh5+ {[%clk 0:00:30.6]} 41... Bh6 {[%clk 0:00:01.5]} 42.
Qxh6# {[%clk 0:00:30.9]} 1-0

[Event "Early-Titled-Tuesday-Blitz-February-27-2024"]
[Site "Chess.com"]
[Date "2024.02.27"]
[Round "1"]
[White "Rurep26"]
[Black "the_blue_pill"]
[Result "1-0"]
[WhiteElo "2702"]
[BlackElo "2398"]
[TimeControl "180+1"]
[EndTime "8:07:20 PST"]
[Termination "Rurep26 won by resignation"]

1. d4 {[%clk 0:02:58.3]} 1... d5 {[%clk 0:02:56]} 2. Bf4 {[%clk 0:02:57.6]} 2...
e6 {[%clk 0:02:51.1]} 3. e3 {[%clk 0:02:46.7]} 3... c5 {[%clk 0:02:51.1]} 4. Nd2
{[%clk 0:02:41.6]} 4... Nc6 {[%clk 0:02:51.7]} 5. c3 {[%clk 0:02:41.6]} 5... Bd6
{[%clk 0:02:50.5]} 6. Bg3 {[%clk 0:02:41.4]} 6... Nge7 {[%clk 0:02:47.3]} 7. Bd3
{[%clk 0:02:40.1]} 7... O-O {[%clk 0:02:46.6]} 8. Ngf3 {[%clk 0:02:39.5]} 8...
cxd4 {[%clk 0:02:45.2]} 9. exd4 {[%clk 0:02:36.5]} 9... f6 {[%clk 0:02:44.4]}
10. O-O {[%clk 0:02:25.8]} 10... Bxg3 {[%clk 0:02:43.8]} 11. hxg3 {[%clk
0:02:25.2]} 11... e5 {[%clk 0:02:44.7]} 12. Bb5 {[%clk 0:02:06.1]} 12... e4
{[%clk 0:02:37.7]} 13. Ne1 {[%clk 0:02:04.9]} 13... f5 {[%clk 0:02:32.9]} 14.
Nc2 {[%clk 0:02:04.3]} 14... Be6 {[%clk 0:02:13.8]} 15. f4 {[%clk 0:01:55.7]}
15... a6 {[%clk 0:01:59]} 16. Be2 {[%clk 0:01:51.4]} 16... Qd7 {[%clk 0:01:49]}
17. Nb3 {[%clk 0:01:47.5]} 17... b6 {[%clk 0:01:47.9]} 18. Ne3 {[%clk
0:01:47.9]} 18... h6 {[%clk 0:01:41.8]} 19. Kf2 {[%clk 0:01:46.4]} 19... Nc8
{[%clk 0:01:20.7]} 20. c4 {[%clk 0:01:42.9]} 20... N6e7 {[%clk 0:01:13.2]} 21.
Rc1 {[%clk 0:01:31.8]} 21... dxc4 {[%clk 0:01:04.7]} 22. Bxc4 {[%clk 0:01:24.9]}
22... Bxc4 {[%clk 0:01:03.9]} 23. Nxc4 {[%clk 0:01:25.8]} 23... Nd5 {[%clk
0:00:57.4]} 24. Ne5 {[%clk 0:01:25.7]} 24... Qa4 {[%clk 0:00:43.1]} 25. Qc2
{[%clk 0:01:10.9]} 25... Nd6 {[%clk 0:00:36.2]} 26. Qc6 {[%clk 0:01:10.5]} 26...
Qxc6 {[%clk 0:00:26.6]} 27. Rxc6 {[%clk 0:01:11.4]} 27... e3+ {[%clk 0:00:20.3]}
28. Kf3 {[%clk 0:01:10.2]} 28... Ne4 {[%clk 0:00:21.2]} 29. Rfc1 {[%clk
0:00:51.2]} 29... a5 {[%clk 0:00:20.1]} 30. a4 {[%clk 0:00:49.9]} 30... Rfd8
{[%clk 0:00:17.9]} 31. Nc4 {[%clk 0:00:48.7]} 31... Re8 {[%clk 0:00:12.7]} 32.
Re1 {[%clk 0:00:40.1]} 32... Rad8 {[%clk 0:00:12]} 33. Nxe3 {[%clk 0:00:38.7]}
33... Nxe3 {[%clk 0:00:11.6]} 34. Rxe3 {[%clk 0:00:39.6]} 34... Nf6 {[%clk
0:00:08]} 35. Re5 {[%clk 0:00:37.1]} 35... Ng4 {[%clk 0:00:07]} 36. Rxf5 {[%clk
0:00:30.2]} 36... g6 {[%clk 0:00:03.6]} 37. Rxg6+ {[%clk 0:00:29]} 37... Kh7
{[%clk 0:00:04.1]} 38. Rxg4 {[%clk 0:00:29.4]} 1-0

[Event "Early-Titled-Tuesday-Blitz-February-27-2024"]
[Site "Chess.com"]
[Date "2024.02.27"]
[Round "1"]
[White "Licancabur"]
[Black "Kiborg95"]
[Result "0-1"]
[WhiteElo "2455"]
[BlackElo "2811"]
[TimeControl "180+1"]
[EndTime "8:07:22 PST"]
[Termination "Kiborg95 won on time"]

1. d4 {[%clk 0:02:58.7]} 1... d6 {[%clk 0:02:54]} 2. Nf3 {[%clk 0:02:56.1]} 2...
Nf6 {[%clk 0:02:53.1]} 3. c4 {[%clk 0:02:54]} 3... Nbd7 {[%clk 0:02:53.4]} 4. g3
{[%clk 0:02:51.6]} 4... e5 {[%clk 0:02:53.3]} 5. Nc3 {[%clk 0:02:49.9]} 5... c6
{[%clk 0:02:53.7]} 6. Bg2 {[%clk 0:02:49.4]} 6... e4 {[%clk 0:02:53.9]} 7. Nd2
{[%clk 0:02:38]} 7... d5 {[%clk 0:02:54.4]} 8. O-O {[%clk 0:02:34.6]} 8... Bb4
{[%clk 0:02:54]} 9. e3 {[%clk 0:02:29.4]} 9... O-O {[%clk 0:02:53.2]} 10. Qb3
{[%clk 0:02:21.7]} 10... Bxc3 {[%clk 0:02:53.4]} 11. bxc3 {[%clk 0:02:20.7]}
11... Nb6 {[%clk 0:02:53.5]} 12. cxd5 {[%clk 0:02:10.9]} 12... cxd5 {[%clk
0:02:54.4]} 13. Ba3 {[%clk 0:02:04.1]} 13... Re8 {[%clk 0:02:53.5]} 14. Bc5
{[%clk 0:02:02.1]} 14... Nbd7 {[%clk 0:02:47.6]} 15. Bd6 {[%clk 0:01:51.7]}
15... Re6 {[%clk 0:02:37]} 16. Ba3 {[%clk 0:01:41.2]} 16... b5 {[%clk
0:02:28.3]} 17. f3 {[%clk 0:01:34.8]} 17... exf3 {[%clk 0:02:22.3]} 18. Nxf3
{[%clk 0:01:34.8]} 18... Rb8 {[%clk 0:02:04.8]} 19. Ng5 {[%clk 0:01:20.3]} 19...
Nb6 {[%clk 0:01:33.4]} 20. Nxe6 {[%clk 0:01:04.1]} 20... Bxe6 {[%clk 0:01:34.3]}
21. Bc5 {[%clk 0:00:57.4]} 21... Nc4 {[%clk 0:01:33.5]} 22. Bxa7 {[%clk
0:00:38.3]} 22... Rb7 {[%clk 0:01:20.2]} 23. Bc5 {[%clk 0:00:38.2]} 23... Nxe3
{[%clk 0:01:11.7]} 24. Rfe1 {[%clk 0:00:28.1]} 24... Nxg2 {[%clk 0:01:10.6]} 25.
Kxg2 {[%clk 0:00:28.3]} 25... Bf5 {[%clk 0:01:10.1]} 26. a4 {[%clk 0:00:24.8]}
26... Be4+ {[%clk 0:01:08.2]} 27. Kg1 {[%clk 0:00:24.7]} 27... Qd7 {[%clk
0:01:00.6]} 28. a5 {[%clk 0:00:21.6]} 28... Qh3 {[%clk 0:00:35.5]} 29. Qb2
{[%clk 0:00:20.3]} 29... h5 {[%clk 0:00:30.3]} 30. a6 {[%clk 0:00:18.8]} 30...
Rb8 {[%clk 0:00:30.9]} 31. a7 {[%clk 0:00:18.8]} 31... Ra8 {[%clk 0:00:31.6]}
32. Ra6 {[%clk 0:00:14.1]} 32... h4 {[%clk 0:00:31.3]} 33. Re3 {[%clk
0:00:11.3]} 33... Ng4 {[%clk 0:00:29.1]} 34. Re2 {[%clk 0:00:09.7]} 34... hxg3
{[%clk 0:00:29.4]} 35. Rb6 {[%clk 0:00:08.2]} 35... gxh2+ {[%clk 0:00:27.5]} 36.
Rxh2 {[%clk 0:00:08]} 36... Qg3+ {[%clk 0:00:27]} 37. Kf1 {[%clk 0:00:07.5]}
37... Nxh2+ {[%clk 0:00:26.1]} 38. Qxh2 {[%clk 0:00:06.6]} 38... Qxh2 {[%clk
0:00:25.4]} 39. Rb8+ {[%clk 0:00:07.3]} 39... Rxb8 {[%clk 0:00:25.8]} 40.
axb8=Q+ {[%clk 0:00:06.8]} 40... Qxb8 {[%clk 0:00:26.7]} 0-1

[Event "Early-Titled-Tuesday-Blitz-February-27-2024"]
[Site "Chess.com"]
[Date "2024.02.27"]
[Round "1"]
[White "PoXerStar"]
[Black "GMG"]
[Result "0-1"]
[WhiteElo "2396"]
[BlackElo "2700"]
[TimeControl "180+1"]
[EndTime "8:07:22 PST"]
[Termination "GMG won on time"]

1. c4 {[%clk 0:02:59.6]} 1... f5 {[%clk 0:02:59.6]} 2. g3 {[%clk 0:02:59.3]}
2... Nf6 {[%clk 0:03:00]} 3. Bg2 {[%clk 0:02:59.3]} 3... d6 {[%clk 0:02:59.8]}
4. d4 {[%clk 0:02:58.2]} 4... g6 {[%clk 0:03:00]} 5. Nh3 {[%clk 0:02:57.9]} 5...
Bg7 {[%clk 0:02:59]} 6. O-O {[%clk 0:02:58.5]} 6... c6 {[%clk 0:02:55]} 7. Nc3
{[%clk 0:02:57.3]} 7... O-O {[%clk 0:02:54.2]} 8. d5 {[%clk 0:02:55.9]} 8... e5
{[%clk 0:02:53.5]} 9. dxe6 {[%clk 0:02:47.3]} 9... Bxe6 {[%clk 0:02:52.8]} 10.
b3 {[%clk 0:02:04.4]} 10... Qe7 {[%clk 0:02:38.7]} 11. Ba3 {[%clk 0:01:48.9]}
11... Rd8 {[%clk 0:02:38.4]} 12. Qc2 {[%clk 0:01:48.9]} 12... Na6 {[%clk
0:02:35.8]} 13. Rad1 {[%clk 0:01:48.4]} 13... Nc5 {[%clk 0:02:35.2]} 14. Nf4
{[%clk 0:01:47.8]} 14... Bf7 {[%clk 0:02:30]} 15. e3 {[%clk 0:01:47.1]} 15...
Rd7 {[%clk 0:02:16.9]} 16. Nd3 {[%clk 0:01:34.5]} 16... Nce4 {[%clk 0:02:14.9]}
17. Nxe4 {[%clk 0:01:22.9]} 17... fxe4 {[%clk 0:02:10.4]} 18. Nf4 {[%clk
0:01:23.3]} 18... g5 {[%clk 0:02:10]} 19. Ne2 {[%clk 0:01:22.9]} 19... Bg6
{[%clk 0:02:03.6]} 20. Rd2 {[%clk 0:01:19.2]} 20... Rad8 {[%clk 0:02:03.2]} 21.
Rfd1 {[%clk 0:01:19.1]} 21... Ng4 {[%clk 0:02:03.7]} 22. Nc3 {[%clk 0:01:14]}
22... Nf6 {[%clk 0:01:50.4]} 23. Bh3 {[%clk 0:01:01.1]} 23... g4 {[%clk
0:01:49.7]} 24. Bg2 {[%clk 0:01:01.5]} 24... Qe5 {[%clk 0:01:48]} 25. Ne2 {[%clk
0:00:59.9]} 25... Ne8 {[%clk 0:01:30.8]} 26. Nf4 {[%clk 0:00:54.6]} 26... Bf5
{[%clk 0:01:30.4]} 27. Bb2 {[%clk 0:00:46.1]} 27... Qxb2 {[%clk 0:01:30]} 28.
Qxb2 {[%clk 0:00:47]} 28... Bxb2 {[%clk 0:01:30.2]} 29. Rxb2 {[%clk 0:00:47.9]}
29... Kf7 {[%clk 0:01:26.6]} 30. Rbd2 {[%clk 0:00:47.3]} 30... Kf6 {[%clk
0:01:26]} 31. Ne2 {[%clk 0:00:41]} 31... Ke5 {[%clk 0:01:24.1]} 32. Nc3 {[%clk
0:00:40.6]} 32... Nf6 {[%clk 0:01:23]} 33. Rd4 {[%clk 0:00:37.1]} 33... c5
{[%clk 0:01:13.2]} 34. R4d2 {[%clk 0:00:34.9]} 34... d5 {[%clk 0:01:13.8]} 35.
cxd5 {[%clk 0:00:35]} 35... Nxd5 {[%clk 0:01:14.7]} 36. Nxd5 {[%clk 0:00:34.9]}
36... Rxd5 {[%clk 0:01:15.6]} 37. Rxd5+ {[%clk 0:00:34.9]} 37... Rxd5 {[%clk
0:01:16.5]} 38. Rxd5+ {[%clk 0:00:35.2]} 38... Kxd5 {[%clk 0:01:17.1]} 39. Kf1
{[%clk 0:00:23.8]} 39... c4 {[%clk 0:01:15.4]} 40. Ke1 {[%clk 0:00:21]} 40...
cxb3 {[%clk 0:01:08.5]} 41. axb3 {[%clk 0:00:21.9]} 41... Kc5 {[%clk 0:01:09.1]}
42. Kd2 {[%clk 0:00:19.5]} 42... Kb4 {[%clk 0:01:09.1]} 43. Kc2 {[%clk 0:00:20]}
43... b5 {[%clk 0:01:07.9]} 44. Bf1 {[%clk 0:00:18.6]} 44... Be6 {[%clk
0:01:07.3]} 45. Kb2 {[%clk 0:00:09.5]} 45... Bxb3 {[%clk 0:01:05.1]} 46. Bxb5
{[%clk 0:00:02.8]} 46... Kxb5 {[%clk 0:01:06]} 47. Kxb3 {[%clk 0:00:03.5]} 47...
a5 {[%clk 0:01:05.8]} 48. Ka3 {[%clk 0:00:03.8]} 48... a4 {[%clk 0:01:06.1]} 49.
Ka2 {[%clk 0:00:02.5]} 49... Kb4 {[%clk 0:01:07]} 50. Kb2 {[%clk 0:00:02.8]}
50... a3+ {[%clk 0:01:07.5]} 51. Ka2 {[%clk 0:00:02.9]} 51... Ka4 {[%clk
0:00:57.5]} 0-1

[Event "Early-Titled-Tuesday-Blitz-February-27-2024"]
[Site "Chess.com"]
[Date "2024.02.27"]
[Round "1"]
[White "ukchessbomber"]
[Black "ridnani1"]
[Result "0-1"]
[WhiteElo "2659"]
[BlackElo "2391"]
[TimeControl "180+1"]
[EndTime "8:07:22 PST"]
[Termination "ridnani1 won by resignation"]

1. c4 {[%clk 0:02:46.3]} 1... Nf6 {[%clk 0:02:59.4]} 2. Nc3 {[%clk 0:02:41.4]}
2... g6 {[%clk 0:02:57.4]} 3. d3 {[%clk 0:02:41.5]} 3... Bg7 {[%clk 0:02:56.9]}
4. Nf3 {[%clk 0:02:42.4]} 4... O-O {[%clk 0:02:57.4]} 5. g3 {[%clk 0:02:42.5]}
5... d6 {[%clk 0:02:56.9]} 6. Bg2 {[%clk 0:02:43.1]} 6... e5 {[%clk 0:02:55.2]}
7. O-O {[%clk 0:02:43.1]} 7... c6 {[%clk 0:02:52.5]} 8. Rb1 {[%clk 0:02:42.9]}
8... a5 {[%clk 0:02:47.7]} 9. a3 {[%clk 0:02:42.2]} 9... Nbd7 {[%clk 0:02:45.7]}
10. b4 {[%clk 0:02:42.1]} 10... axb4 {[%clk 0:02:45.5]} 11. axb4 {[%clk
0:02:42.5]} 11... d5 {[%clk 0:02:44.8]} 12. b5 {[%clk 0:02:42.7]} 12... dxc4
{[%clk 0:02:24.8]} 13. dxc4 {[%clk 0:02:35.2]} 13... Qc7 {[%clk 0:02:23.6]} 14.
Be3 {[%clk 0:01:50.2]} 14... Rd8 {[%clk 0:02:13.5]} 15. b6 {[%clk 0:01:46.4]}
15... Qb8 {[%clk 0:02:08.4]} 16. Qb3 {[%clk 0:01:30.6]} 16... Ng4 {[%clk
0:02:04.2]} 17. Bg5 {[%clk 0:01:30.5]} 17... Re8 {[%clk 0:01:56.5]} 18. Ne4
{[%clk 0:01:24.6]} 18... Bf8 {[%clk 0:01:39.3]} 19. h3 {[%clk 0:01:22.4]} 19...
f5 {[%clk 0:01:32.8]} 20. c5+ {[%clk 0:01:18.1]} 20... Kg7 {[%clk 0:01:32.8]}
21. Nd6 {[%clk 0:01:18]} 21... Bxd6 {[%clk 0:01:28]} 22. cxd6 {[%clk 0:01:17.5]}
22... Ngf6 {[%clk 0:01:28]} 23. Rfd1 {[%clk 0:01:16]} 23... h6 {[%clk
0:01:15.9]} 24. Bxf6+ {[%clk 0:00:40.2]} 24... Nxf6 {[%clk 0:01:16.8]} 25. Qc3
{[%clk 0:00:40.5]} 25... Nd5 {[%clk 0:01:01.6]} 26. Rxd5 {[%clk 0:00:35.8]}
26... cxd5 {[%clk 0:00:59]} 27. Nxe5 {[%clk 0:00:31]} 27... Qxd6 {[%clk
0:00:58.9]} 28. Ng4+ {[%clk 0:00:31]} 28... d4 {[%clk 0:00:52.4]} 29. Qd2 {[%clk
0:00:17.4]} 29... fxg4 {[%clk 0:00:50.5]} 30. Rc1 {[%clk 0:00:18.1]} 30... Re7
{[%clk 0:00:43.8]} 31. h4 {[%clk 0:00:16.1]} 31... Bf5 {[%clk 0:00:42.5]} 32. h5
{[%clk 0:00:14.6]} 32... Qxb6 {[%clk 0:00:38.6]} 33. Qf4 {[%clk 0:00:14.4]}
33... Rd8 {[%clk 0:00:32.1]} 34. hxg6 {[%clk 0:00:14.6]} 34... Qd6 {[%clk
0:00:32.1]} 35. Qxf5 {[%clk 0:00:14.1]} 35... Qxg6 {[%clk 0:00:31.7]} 36. Qc5
{[%clk 0:00:12.4]} 36... Rxe2 {[%clk 0:00:29]} 37. Qc7+ {[%clk 0:00:11.7]} 37...
Qf7 {[%clk 0:00:28.4]} 38. Kh2 {[%clk 0:00:02]} 38... Qxc7 {[%clk 0:00:24]} 39.
Rxc7+ {[%clk 0:00:02.9]} 39... Kf8 {[%clk 0:00:22.9]} 40. Rxb7 {[%clk
0:00:01.8]} 40... d3 {[%clk 0:00:22.8]} 41. Bf1 {[%clk 0:00:01.5]} 41... Rxf2+
{[%clk 0:00:22.3]} 42. Kg1 {[%clk 0:00:02.4]} 42... Rxf1+ {[%clk 0:00:22.6]} 43.
Kxf1 {[%clk 0:00:03.3]} 43... d2 {[%clk 0:00:23.4]} 0-1

[Event "Early-Titled-Tuesday-Blitz-February-27-2024"]
[Site "Chess.com"]
[Date "2024.02.27"]
[Round "1"]
[White "yosephtaher"]
[Black "m_ezat"]
[Result "1-0"]
[WhiteElo "2927"]
[BlackElo "2510"]
[TimeControl "180+1"]
[EndTime "8:07:23 PST"]
[Termination "yosephtaher won by resignation"]

1. d4 {[%clk 0:03:00.9]} 1... Nf6 {[%clk 0:02:59.1]} 2. Nc3 {[%clk 0:03:01.3]}
2... d5 {[%clk 0:02:58.5]} 3. Bf4 {[%clk 0:03:02]} 3... c5 {[%clk 0:02:57.9]} 4.
e4 {[%clk 0:03:01.8]} 4... cxd4 {[%clk 0:02:56.3]} 5. Qxd4 {[%clk 0:03:00]} 5...
Nc6 {[%clk 0:02:55.7]} 6. Bb5 {[%clk 0:02:59.9]} 6... Bd7 {[%clk 0:02:53.9]} 7.
Bxc6 {[%clk 0:03:00]} 7... Bxc6 {[%clk 0:02:53.9]} 8. e5 {[%clk 0:03:00.6]} 8...
Ne4 {[%clk 0:02:53.3]} 9. e6 {[%clk 0:02:55.3]} 9... Qb6 {[%clk 0:02:41.7]} 10.
exf7+ {[%clk 0:02:54.1]} 10... Kxf7 {[%clk 0:02:41.1]} 11. Qxb6 {[%clk
0:02:53.6]} 11... axb6 {[%clk 0:02:40.5]} 12. Nxe4 {[%clk 0:02:44.5]} 12... dxe4
{[%clk 0:02:40.5]} 13. Ne2 {[%clk 0:02:45.1]} 13... g6 {[%clk 0:02:39.6]} 14.
Be5 {[%clk 0:02:44.7]} 14... Rg8 {[%clk 0:02:39]} 15. Nc3 {[%clk 0:02:42.1]}
15... Bh6 {[%clk 0:02:34.1]} 16. Rd1 {[%clk 0:02:36]} 16... Rgd8 {[%clk
0:02:32.5]} 17. Bd4 {[%clk 0:02:35.2]} 17... b5 {[%clk 0:02:29.6]} 18. a3 {[%clk
0:02:35]} 18... Rd7 {[%clk 0:02:21.1]} 19. Ke2 {[%clk 0:02:33.6]} 19... Rad8
{[%clk 0:02:18.8]} 20. Be3 {[%clk 0:02:30.3]} 20... Rxd1 {[%clk 0:02:17.2]} 21.
Rxd1 {[%clk 0:02:29.4]} 21... Rxd1 {[%clk 0:02:16.9]} 22. Nxd1 {[%clk
0:02:30.3]} 22... Bg7 {[%clk 0:02:16.6]} 23. c3 {[%clk 0:02:30.4]} 23... Bd5
{[%clk 0:02:13.3]} 24. Kd2 {[%clk 0:02:10.4]} 24... Be5 {[%clk 0:02:09.6]} 25.
h3 {[%clk 0:02:05.5]} 25... Bc4 {[%clk 0:02:09.6]} 26. Ke1 {[%clk 0:01:59.5]}
26... Bd6 {[%clk 0:01:58.2]} 27. Bd2 {[%clk 0:01:59.6]} 27... Bc5 {[%clk
0:01:57]} 28. Be3 {[%clk 0:01:59.4]} 28... Bd6 {[%clk 0:01:56.9]} 29. g3 {[%clk
0:01:58.7]} 29... Be6 {[%clk 0:01:49.6]} 30. h4 {[%clk 0:01:59]} 30... Bc4
{[%clk 0:01:44.1]} 31. Bb6 {[%clk 0:01:58.8]} 31... Bb3 {[%clk 0:01:38.3]} 32.
Ne3 {[%clk 0:01:59]} 32... Be5 {[%clk 0:01:37]} 33. Ng4 {[%clk 0:01:58]} 33...
Bg7 {[%clk 0:01:36.2]} 34. Bd4 {[%clk 0:01:57.8]} 34... Bf8 {[%clk 0:01:36]} 35.
Kd2 {[%clk 0:01:56.1]} 35... Bc4 {[%clk 0:01:32.1]} 36. Ne5+ {[%clk 0:01:55.9]}
36... Ke6 {[%clk 0:01:32.3]} 37. Nxc4 {[%clk 0:01:36.2]} 37... bxc4 {[%clk
0:01:32.2]} 38. a4 {[%clk 0:01:36.8]} 38... Kd5 {[%clk 0:01:29.5]} 39. Kc2
{[%clk 0:01:35.6]} 39... e6 {[%clk 0:01:22.2]} 40. b3 {[%clk 0:01:34.9]} 40...
Be7 {[%clk 0:00:57.3]} 41. Be3 {[%clk 0:01:32.5]} 41... cxb3+ {[%clk 0:00:52.7]}
42. Kxb3 {[%clk 0:01:31.6]} 42... Bd6 {[%clk 0:00:50.6]} 43. a5 {[%clk
0:01:29.7]} 43... Be7 {[%clk 0:00:47.6]} 44. Bb6 {[%clk 0:01:25.5]} 44... Bd6
{[%clk 0:00:45.4]} 45. c4+ {[%clk 0:01:24]} 45... Kc6 {[%clk 0:00:45.5]} 46. Kc3
{[%clk 0:01:24.5]} 46... Be5+ {[%clk 0:00:45.2]} 47. Kd2 {[%clk 0:01:24.7]}
47... Bc7 {[%clk 0:00:22.5]} 48. Bxc7 {[%clk 0:01:18.2]} 48... Kxc7 {[%clk
0:00:22.5]} 49. Ke3 {[%clk 0:01:19.1]} 49... Kc6 {[%clk 0:00:22.9]} 50. Kxe4
{[%clk 0:01:19.7]} 50... Kc5 {[%clk 0:00:23.6]} 51. Ke5 {[%clk 0:01:20.2]} 51...
Kxc4 {[%clk 0:00:23.2]} 52. Kxe6 {[%clk 0:01:20.1]} 52... Kb5 {[%clk 0:00:23.2]}
53. g4 {[%clk 0:01:20.7]} 53... Kxa5 {[%clk 0:00:23.8]} 54. f4 {[%clk
0:01:21.2]} 54... b5 {[%clk 0:00:23.9]} 55. Kd5 {[%clk 0:01:13.4]} 55... b4
{[%clk 0:00:23.3]} 56. Kc4 {[%clk 0:01:13.6]} 56... Ka4 {[%clk 0:00:23.7]} 57.
f5 {[%clk 0:01:14.2]} 57... gxf5 {[%clk 0:00:22.3]} 58. gxf5 {[%clk 0:01:15.1]}
58... b3 {[%clk 0:00:20.8]} 59. Kc3 {[%clk 0:01:15]} 59... Ka3 {[%clk 0:00:20]}
60. f6 {[%clk 0:01:15.6]} 60... b2 {[%clk 0:00:20.1]} 61. f7 {[%clk 0:01:15.5]}
61... b1=Q {[%clk 0:00:19.7]} 62. f8=Q+ {[%clk 0:01:15.4]} 62... Ka4 {[%clk
0:00:15.9]} 63. Qa8+ {[%clk 0:01:15.6]} 63... Kb5 {[%clk 0:00:16.2]} 64. Qb8+
{[%clk 0:01:16.5]} 64... Kc5 {[%clk 0:00:16]} 65. Qxb1 {[%clk 0:01:17.4]} 65...
Kd5 {[%clk 0:00:15.9]} 66. Qxh7 {[%clk 0:01:18.3]} 1-0